[Event "*** Titled Tuesday 3|2 Blitz (Early)"]
[Site "Chess.com"]
[Date "2016.11.01"]
[Round "4"]
[White "Kawhi_Leonard2"]
[Black "Quiet_Desperation"]
[Result "0-1"]
[WhiteElo "2054"]
[BlackElo "2298"]
[TimeControl "180+2"]
[EndTime "11:50:13 PDT"]
[Termination "Quiet_Desperation won by resignation"]

1. e4 {[%clk 0:03:02]} 1... Nc6 {[%clk 0:02:56.6]} 2. Nf3 {[%clk 0:03:02.3]}
2... d6 {[%clk 0:02:57.1]} 3. d4 {[%clk 0:03:03.3]} 3... Nf6 {[%clk 0:02:58.2]}
4. Nc3 {[%clk 0:03:03.2]} 4... d5 {[%clk 0:02:59.4]} 5. e5 {[%clk 0:02:56.1]}
5... Ne4 {[%clk 0:03:00.5]} 6. Bd3 {[%clk 0:02:51.4]} 6... Bf5 {[%clk
0:03:00.6]} 7. O-O {[%clk 0:02:43]} 7... e6 {[%clk 0:03:00.2]} 8. Re1 {[%clk
0:02:42]} 8... Nxc3 {[%clk 0:03:01.1]} 9. bxc3 {[%clk 0:02:42.6]} 9... Bg4
{[%clk 0:03:02.5]} 10. Rb1 {[%clk 0:02:40]} 10... Rb8 {[%clk 0:03:02.5]} 11. h3
{[%clk 0:02:32.9]} 11... Bh5 {[%clk 0:03:03]} 12. Re3 {[%clk 0:01:57.8]} 12...
Be7 {[%clk 0:03:01]} 13. Qf1 {[%clk 0:01:55.3]} 13... Bg6 {[%clk 0:02:52.8]} 14.
Bxg6 {[%clk 0:01:40.9]} 14... hxg6 {[%clk 0:02:51.7]} 15. Nh2 {[%clk 0:01:37.9]}
15... Qd7 {[%clk 0:02:32.5]} 16. Rg3 {[%clk 0:01:36.3]} 16... Na5 {[%clk
0:02:15.4]} 17. Qe2 {[%clk 0:01:31]} 17... Nc4 {[%clk 0:02:12]} 18. Nf3 {[%clk
0:01:26]} 18... Qa4 {[%clk 0:02:09.8]} 19. a3 {[%clk 0:01:17.9]} 19... b5 {[%clk
0:01:33.2]} 20. h4 {[%clk 0:01:14.8]} 20... Kd7 {[%clk 0:01:23.1]} 21. h5 {[%clk
0:01:15]} 21... Rxh5 {[%clk 0:01:21.7]} 22. Rh3 {[%clk 0:01:06.5]} 22... Rxh3
{[%clk 0:01:20]} 23. gxh3 {[%clk 0:01:07.6]} 23... Rh8 {[%clk 0:01:19.8]} 24.
Kg2 {[%clk 0:01:07.9]} 24... a6 {[%clk 0:01:14]} 25. Qd3 {[%clk 0:00:53.4]}
25... Ra8 {[%clk 0:00:51.1]} 26. h4 {[%clk 0:00:49.8]} 26... Nxa3 {[%clk
0:00:50]} 27. Bxa3 {[%clk 0:00:46.3]} 27... Qxa3 {[%clk 0:00:49.6]} 28. Rb3
{[%clk 0:00:35.1]} 28... Qc1 {[%clk 0:00:47.9]} 29. h5 {[%clk 0:00:25.8]} 29...
gxh5 {[%clk 0:00:44.7]} 30. Qh7 {[%clk 0:00:26.4]} 30... Qh6 {[%clk 0:00:40.4]}
31. Qxh6 {[%clk 0:00:26.2]} 31... gxh6 {[%clk 0:00:41]} 32. Rb1 {[%clk
0:00:24.2]} 32... c5 {[%clk 0:00:39.5]} 33. Rh1 {[%clk 0:00:23.8]} 33... c4
{[%clk 0:00:38.9]} 34. Rxh5 {[%clk 0:00:22.2]} 34... Bg5 {[%clk 0:00:37.8]} 35.
Nxg5 {[%clk 0:00:20.9]} 35... hxg5 {[%clk 0:00:39]} 36. Rxg5 {[%clk 0:00:22.2]}
36... a5 {[%clk 0:00:40.6]} 37. Rg7 {[%clk 0:00:21.9]} 37... Ke7 {[%clk
0:00:40.1]} 38. Rh7 {[%clk 0:00:21.4]} 38... b4 {[%clk 0:00:38.6]} 39. cxb4
{[%clk 0:00:19.3]} 39... axb4 {[%clk 0:00:39.4]} 40. Rh1 {[%clk 0:00:20.1]}
40... Ra2 {[%clk 0:00:38.8]} 41. Rb1 {[%clk 0:00:20.4]} 41... Rxc2 {[%clk
0:00:36.4]} 42. Rxb4 {[%clk 0:00:21.1]} 42... Rd2 {[%clk 0:00:37.3]} 43. Rb7+
{[%clk 0:00:19]} 43... Kf8 {[%clk 0:00:37.9]} 44. Kg3 {[%clk 0:00:14.8]} 44...
Rxd4 {[%clk 0:00:38.8]} 45. f4 {[%clk 0:00:16]} 45... Kg7 {[%clk 0:00:36.6]} 46.
Kg4 {[%clk 0:00:15.9]} 46... c3 {[%clk 0:00:32.7]} 47. Rc7 {[%clk 0:00:17.1]}
47... Rc4 {[%clk 0:00:33.5]} 48. Rxc4 {[%clk 0:00:16]} 48... dxc4 {[%clk
0:00:34.1]} 0-1

[Event "*** Titled Tuesday 3|2 Blitz (Early)"]
[Site "Chess.com"]
[Date "2016.11.01"]
[Round "4"]
[White "Matibar"]
[Black "Alexander_Moskalenko"]
[Result "1/2-1/2"]
[WhiteElo "2584"]
[BlackElo "2705"]
[TimeControl "180+2"]
[EndTime "11:50:41 PDT"]
[Termination "Game drawn by agreement"]

1. e4 {[%clk 0:03:01.2]} 1... c5 {[%clk 0:03:02]} 2. Ne2 {[%clk 0:03:01.5]} 2...
d6 {[%clk 0:03:03.6]} 3. g3 {[%clk 0:03:02.1]} 3... d5 {[%clk 0:03:04.1]} 4. Bg2
{[%clk 0:03:02.4]} 4... dxe4 {[%clk 0:03:04.8]} 5. Bxe4 {[%clk 0:03:03.5]} 5...
Nf6 {[%clk 0:03:06.3]} 6. Bg2 {[%clk 0:03:05.2]} 6... Nc6 {[%clk 0:03:07.3]} 7.
Nbc3 {[%clk 0:03:05.9]} 7... e6 {[%clk 0:03:06.4]} 8. O-O {[%clk 0:03:06.6]}
8... Be7 {[%clk 0:03:08]} 9. d3 {[%clk 0:03:02.6]} 9... O-O {[%clk 0:03:08.4]}
10. Be3 {[%clk 0:03:01.9]} 10... Nd4 {[%clk 0:03:01.3]} 11. Ne4 {[%clk
0:02:58.1]} 11... Nxe4 {[%clk 0:02:52.1]} 12. dxe4 {[%clk 0:02:58.5]} 12...
Nxe2+ {[%clk 0:02:47.8]} 13. Qxe2 {[%clk 0:03:00.4]} 13... Qc7 {[%clk
0:02:36.6]} 14. Rfd1 {[%clk 0:02:55.9]} 14... Bd7 {[%clk 0:02:32.8]} 15. Bf4
{[%clk 0:02:53.9]} 15... e5 {[%clk 0:02:29]} 16. Bxe5 {[%clk 0:02:28.3]} 16...
Qxe5 {[%clk 0:02:30.9]} 17. Rxd7 {[%clk 0:02:30]} 17... Qxb2 {[%clk 0:02:32.1]}
18. Rad1 {[%clk 0:02:31.7]} 18... Bf6 {[%clk 0:02:30.1]} 19. e5 {[%clk
0:02:33.2]} 19... Qxe5 {[%clk 0:02:20]} 20. Qxe5 {[%clk 0:02:31.2]} 20... Bxe5
{[%clk 0:02:21.9]} 21. Bxb7 {[%clk 0:02:32.9]} 21... Rab8 {[%clk 0:02:21.2]} 22.
a4 {[%clk 0:02:24.7]} 22... a5 {[%clk 0:02:20.8]} 23. Kg2 {[%clk 0:02:25.8]}
23... g6 {[%clk 0:02:14.3]} 24. R1d5 {[%clk 0:02:26.5]} 24... Bd4 {[%clk
0:02:14.7]} 25. c3 {[%clk 0:02:28.1]} 25... Bxc3 {[%clk 0:02:15.4]} 26. Rxc5
{[%clk 0:02:29.7]} 26... Bb4 {[%clk 0:02:11.2]} 27. Rcc7 {[%clk 0:02:31.2]}
27... Rbd8 {[%clk 0:02:12.3]} 28. Bd5 {[%clk 0:02:31.9]} 28... Rxd7 {[%clk
0:02:13.3]} 29. Rxd7 {[%clk 0:02:33.8]} 29... h5 {[%clk 0:02:14.3]} 30. f4
{[%clk 0:02:28.2]} 30... Kg7 {[%clk 0:02:15.5]} 31. h3 {[%clk 0:02:28.7]} 31...
Kf6 {[%clk 0:02:16.6]} 32. Kf3 {[%clk 0:02:28.9]} 32... Be7 {[%clk 0:02:01]} 33.
Ra7 {[%clk 0:02:28.3]} 33... Bb4 {[%clk 0:01:57.8]} 34. g4 {[%clk 0:02:23.6]}
34... hxg4+ {[%clk 0:01:58]} 35. hxg4 {[%clk 0:02:25.5]} 35... g5 {[%clk
0:01:58.5]} 36. Ra6+ {[%clk 0:02:25.9]} 36... Kg7 {[%clk 0:01:51.5]} 37. fxg5
{[%clk 0:02:26.5]} 37... Rd8 {[%clk 0:01:52.4]} 38. Ke4 {[%clk 0:02:25.3]} 38...
Re8+ {[%clk 0:01:53]} 39. Kd4 {[%clk 0:02:22.1]} 39... Bd2 {[%clk 0:01:46.4]}
40. Kd3 {[%clk 0:02:11.3]} 40... Bb4 {[%clk 0:01:46.4]} 41. Be4 {[%clk
0:01:52.7]} 41... Rd8+ {[%clk 0:01:34]} 42. Ke2 {[%clk 0:01:50.9]} 42... Re8
{[%clk 0:01:15.2]} 43. Kf3 {[%clk 0:01:50]} 43... Re6 {[%clk 0:01:15.7]} 44. Ra7
{[%clk 0:01:50.8]} 44... Re7 {[%clk 0:01:15.7]} 45. Ra8 {[%clk 0:01:50.1]} 45...
Re5 {[%clk 0:01:16]} 46. g6 {[%clk 0:01:48.9]} 46... fxg6 {[%clk 0:01:12.3]} 47.
Ra6 {[%clk 0:01:50.4]} 47... g5 {[%clk 0:01:13.8]} 48. Bf5 {[%clk 0:01:38.2]}
48... Kf7 {[%clk 0:01:10.1]} 49. Ra7+ {[%clk 0:01:29.3]} 49... Kf6 {[%clk
0:01:01.7]} 50. Ra6+ {[%clk 0:01:30]} 50... Ke7 {[%clk 0:01:02.7]} 51. Rg6
{[%clk 0:01:28.6]} 51... Bd2 {[%clk 0:01:01.9]} 52. Rg7+ {[%clk 0:01:29.8]}
52... Kf8 {[%clk 0:01:03.1]} 53. Rd7 {[%clk 0:01:25]} 53... Bf4 {[%clk
0:01:03.5]} 54. Ra7 {[%clk 0:01:22.4]} 54... Re3+ {[%clk 0:01:00.6]} 55. Kg2
{[%clk 0:01:20.3]} 55... Re5 {[%clk 0:01:02.5]} 56. Kf3 {[%clk 0:01:21.2]} 56...
Ke8 {[%clk 0:01:00.7]} 57. Bd7+ {[%clk 0:01:17.9]} 57... Kd8 {[%clk 0:01:01.3]}
58. Bb5 {[%clk 0:01:19.8]} 58... Re3+ {[%clk 0:00:35.2]} 59. Kf2 {[%clk
0:01:20.8]} 59... Rg3 {[%clk 0:00:35]} 60. Rd7+ {[%clk 0:01:13.5]} 60... Kc8
{[%clk 0:00:34.6]} 1/2-1/2

[Event "*** Titled Tuesday 3|2 Blitz (Early)"]
[Site "Chess.com"]
[Date "2016.11.01"]
[Round "4"]
[White "TomsKantans"]
[Black "LuckyTiger"]
[Result "0-1"]
[WhiteElo "2470"]
[BlackElo "2594"]
[TimeControl "180+2"]
[EndTime "11:50:43 PDT"]
[Termination "LuckyTiger won on time"]

1. e4 {[%clk 0:03:00.5]} 1... c5 {[%clk 0:02:58.8]} 2. Nf3 {[%clk 0:02:58.8]}
2... d6 {[%clk 0:03:00.2]} 3. Bb5+ {[%clk 0:02:58]} 3... Nc6 {[%clk 0:02:47.1]}
4. O-O {[%clk 0:02:57.8]} 4... Bd7 {[%clk 0:02:48.4]} 5. Re1 {[%clk 0:02:59.1]}
5... Nf6 {[%clk 0:02:49.7]} 6. c3 {[%clk 0:02:59.6]} 6... a6 {[%clk 0:02:50.8]}
7. Bf1 {[%clk 0:03:00.7]} 7... Bg4 {[%clk 0:02:51.9]} 8. h3 {[%clk 0:03:01.5]}
8... Bxf3 {[%clk 0:02:51.2]} 9. Qxf3 {[%clk 0:03:03.4]} 9... g6 {[%clk
0:02:52.5]} 10. d3 {[%clk 0:03:04.5]} 10... Bg7 {[%clk 0:02:53.2]} 11. Be3
{[%clk 0:03:05.8]} 11... O-O {[%clk 0:02:51.8]} 12. Nd2 {[%clk 0:03:07]} 12...
Nd7 {[%clk 0:02:49.8]} 13. Qd1 {[%clk 0:03:05.2]} 13... b5 {[%clk 0:02:49.4]}
14. Nf3 {[%clk 0:03:04.8]} 14... Nb6 {[%clk 0:02:31.8]} 15. Rc1 {[%clk
0:02:56.8]} 15... Qd7 {[%clk 0:02:21.8]} 16. b3 {[%clk 0:02:29.5]} 16... b4
{[%clk 0:02:20.2]} 17. cxb4 {[%clk 0:02:26]} 17... Nxb4 {[%clk 0:02:18]} 18. d4
{[%clk 0:02:13.3]} 18... Nxa2 {[%clk 0:01:54.8]} 19. dxc5 {[%clk 0:01:18]} 19...
Nxc1 {[%clk 0:01:55.3]} 20. cxb6 {[%clk 0:01:19.1]} 20... Na2 {[%clk 0:01:55.9]}
21. e5 {[%clk 0:01:15.6]} 21... Nc3 {[%clk 0:01:50.6]} 22. Qd2 {[%clk
0:01:08.5]} 22... Ne4 {[%clk 0:01:41.2]} 23. Qd5 {[%clk 0:01:04.5]} 23... Nc3
{[%clk 0:01:33.2]} 24. Qd2 {[%clk 0:00:47.5]} 24... Nb5 {[%clk 0:01:30.6]} 25.
Bh6 {[%clk 0:00:35.8]} 25... Qc6 {[%clk 0:01:16.5]} 26. Qg5 {[%clk 0:00:22.3]}
26... dxe5 {[%clk 0:01:02.2]} 27. Bxg7 {[%clk 0:00:20.7]} 27... Kxg7 {[%clk
0:01:04.1]} 28. Qxe5+ {[%clk 0:00:21.8]} 28... Qf6 {[%clk 0:01:03.9]} 29. Qxe7
{[%clk 0:00:18]} 29... Rab8 {[%clk 0:00:56.9]} 30. b7 {[%clk 0:00:16.4]} 30...
Nd6 {[%clk 0:00:49.2]} 31. Bxa6 {[%clk 0:00:14.3]} 31... Rfe8 {[%clk 0:00:47.2]}
32. Qxf6+ {[%clk 0:00:15]} 32... Kxf6 {[%clk 0:00:49.1]} 33. Rd1 {[%clk
0:00:11]} 33... Nxb7 {[%clk 0:00:49.6]} 34. Rd5 {[%clk 0:00:06]} 34... Re6
{[%clk 0:00:46.2]} 35. Bc4 {[%clk 0:00:06]} 35... Nd6 {[%clk 0:00:45]} 36. g4
{[%clk 0:00:05.8]} 36... Nxc4 {[%clk 0:00:45.1]} 37. bxc4 {[%clk 0:00:07.7]}
37... Rb1+ {[%clk 0:00:43]} 38. Kg2 {[%clk 0:00:08.3]} 38... Rc1 {[%clk
0:00:43.6]} 39. Rd4 {[%clk 0:00:07.6]} 39... h6 {[%clk 0:00:43.9]} 40. Kg3
{[%clk 0:00:07.9]} 40... Ke7 {[%clk 0:00:44.2]} 41. Nd2 {[%clk 0:00:05.9]} 41...
Ree1 {[%clk 0:00:37.9]} 42. Nf3 {[%clk 0:00:06.3]} 42... Rc3 {[%clk 0:00:37.7]}
43. h4 {[%clk 0:00:04.8]} 43... Rec1 {[%clk 0:00:33]} 44. Re4+ {[%clk
0:00:05.4]} 44... Kf8 {[%clk 0:00:33.5]} 45. Kg2 {[%clk 0:00:02.7]} 45... Rxc4
{[%clk 0:00:33.9]} 46. Rxc4 {[%clk 0:00:04.6]} 46... Rxc4 {[%clk 0:00:35.5]} 47.
Kg3 {[%clk 0:00:06.1]} 47... Ra4 {[%clk 0:00:36.7]} 48. Ne5 {[%clk 0:00:05.4]}
48... Ke7 {[%clk 0:00:33.4]} 0-1

[Event "*** Titled Tuesday 3|2 Blitz (Early)"]
[Site "Chess.com"]
[Date "2016.11.01"]
[Round "4"]
[White "Smirnov_Pavel"]
[Black "platy3"]
[Result "0-1"]
[WhiteElo "2515"]
[BlackElo "2690"]
[TimeControl "180+2"]
[EndTime "11:50:44 PDT"]
[Termination "platy3 won by resignation"]

1. d4 {[%clk 0:03:01.9]} 1... Nf6 {[%clk 0:03:00.6]} 2. c4 {[%clk 0:03:02.9]}
2... g6 {[%clk 0:02:59.8]} 3. g3 {[%clk 0:03:03.5]} 3... Bg7 {[%clk 0:03:00.7]}
4. Bg2 {[%clk 0:03:04.7]} 4... O-O {[%clk 0:03:01.4]} 5. Nc3 {[%clk 0:03:04.6]}
5... d6 {[%clk 0:03:02.2]} 6. Nf3 {[%clk 0:03:05.5]} 6... Nc6 {[%clk 0:03:03.4]}
7. O-O {[%clk 0:03:06.3]} 7... a6 {[%clk 0:03:04.4]} 8. Bf4 {[%clk 0:03:07.2]}
8... Rb8 {[%clk 0:03:05]} 9. Rc1 {[%clk 0:03:08]} 9... h6 {[%clk 0:03:04.7]} 10.
h3 {[%clk 0:03:07.3]} 10... g5 {[%clk 0:03:05.3]} 11. Bd2 {[%clk 0:03:06.3]}
11... g4 {[%clk 0:03:04.2]} 12. hxg4 {[%clk 0:03:06.2]} 12... Nxg4 {[%clk
0:03:06.1]} 13. d5 {[%clk 0:03:03.3]} 13... Nce5 {[%clk 0:03:02.5]} 14. Nxe5
{[%clk 0:02:43.1]} 14... Nxe5 {[%clk 0:03:04.4]} 15. b3 {[%clk 0:02:40.3]} 15...
c5 {[%clk 0:03:00.1]} 16. dxc6 {[%clk 0:02:38.5]} 16... bxc6 {[%clk 0:03:01.2]}
17. Bf4 {[%clk 0:02:39.2]} 17... Ng6 {[%clk 0:03:01.1]} 18. Be3 {[%clk 0:02:39]}
18... Bd7 {[%clk 0:02:57]} 19. Qd2 {[%clk 0:02:37.9]} 19... h5 {[%clk
0:02:56.8]} 20. Bg5 {[%clk 0:02:36.5]} 20... Qa5 {[%clk 0:02:52.8]} 21. Ne4
{[%clk 0:02:22.6]} 21... Qf5 {[%clk 0:02:44.5]} 22. Bh6 {[%clk 0:01:51.9]} 22...
h4 {[%clk 0:02:40.3]} 23. Bxg7 {[%clk 0:01:52.4]} 23... Kxg7 {[%clk 0:02:41.1]}
24. Qg5 {[%clk 0:01:48.9]} 24... Qxg5 {[%clk 0:02:24.3]} 25. Nxg5 {[%clk
0:01:48.3]} 25... hxg3 {[%clk 0:02:26.1]} 26. fxg3 {[%clk 0:01:48.2]} 26... f6
{[%clk 0:02:27.8]} 27. Nf3 {[%clk 0:01:46.9]} 27... c5 {[%clk 0:02:27.4]} 28.
Kf2 {[%clk 0:01:46.1]} 28... a5 {[%clk 0:02:21.1]} 29. Rc3 {[%clk 0:01:44.8]}
29... a4 {[%clk 0:02:13.6]} 30. Re3 {[%clk 0:01:44.6]} 30... Rb4 {[%clk
0:02:09.6]} 31. Nd2 {[%clk 0:01:43.6]} 31... Ne5 {[%clk 0:02:08.4]} 32. Bf3
{[%clk 0:01:40.6]} 32... Rh8 {[%clk 0:02:01.7]} 33. Re4 {[%clk 0:01:33.4]} 33...
f5 {[%clk 0:01:28.9]} 34. Rh4 {[%clk 0:01:32.1]} 34... Rxh4 {[%clk 0:01:22.6]}
35. gxh4 {[%clk 0:01:32.9]} 35... Kh6 {[%clk 0:01:19.7]} 36. Rg1 {[%clk
0:01:25.5]} 36... Be6 {[%clk 0:01:20]} 37. Ke3 {[%clk 0:01:21.7]} 37... Ng6
{[%clk 0:01:11.4]} 38. h5 {[%clk 0:01:03.5]} 38... Ne5 {[%clk 0:01:12.6]} 39.
Kf4 {[%clk 0:00:47.2]} 39... Rb8 {[%clk 0:01:13.5]} 40. e4 {[%clk 0:00:45.9]}
40... Rf8 {[%clk 0:01:11.1]} 41. exf5 {[%clk 0:00:43.1]} 41... Rxf5+ {[%clk
0:01:05.4]} 42. Ke3 {[%clk 0:00:44]} 42... axb3 {[%clk 0:01:06.5]} 43. axb3
{[%clk 0:00:44]} 43... Rf8 {[%clk 0:01:05.3]} 44. Be2 {[%clk 0:00:42.3]} 44...
Ra8 {[%clk 0:01:01.9]} 45. Rf1 {[%clk 0:00:28.6]} 45... Ra2 {[%clk 0:00:56.9]}
46. Rf8 {[%clk 0:00:26.5]} 46... Bf7 {[%clk 0:00:55.7]} 47. Nf3 {[%clk
0:00:16.6]} 47... Kg7 {[%clk 0:00:57]} 48. Rc8 {[%clk 0:00:14.5]} 48... Ng4+
{[%clk 0:00:53.9]} 49. Kf4 {[%clk 0:00:10.2]} 49... Rxe2 {[%clk 0:00:54.3]} 50.
Ng5 {[%clk 0:00:09.7]} 50... Nh6 {[%clk 0:00:50]} 0-1

[Event "*** Titled Tuesday 3|2 Blitz (Early)"]
[Site "Chess.com"]
[Date "2016.11.01"]
[Round "4"]
[White "IMJonathanCarlstedt"]
[Black "KuzubovYuriy"]
[Result "1-0"]
[WhiteElo "2443"]
[BlackElo "2532"]
[TimeControl "180+2"]
[EndTime "11:50:48 PDT"]
[Termination "IMJonathanCarlstedt won by resignation"]

1. c4 {[%clk 0:03:00.1]} 1... g6 {[%clk 0:02:58]} 2. g3 {[%clk 0:03:01.3]} 2...
Bg7 {[%clk 0:02:59.5]} 3. Bg2 {[%clk 0:03:02.9]} 3... d6 {[%clk 0:03:00.1]} 4.
Nc3 {[%clk 0:03:03.7]} 4... c5 {[%clk 0:03:00.7]} 5. e4 {[%clk 0:03:05]} 5...
Nh6 {[%clk 0:03:01.4]} 6. Nge2 {[%clk 0:03:05.7]} 6... Nc6 {[%clk 0:03:01.7]} 7.
d3 {[%clk 0:03:04.5]} 7... f5 {[%clk 0:03:02.9]} 8. h3 {[%clk 0:03:04]} 8... O-O
{[%clk 0:03:03.7]} 9. O-O {[%clk 0:03:03]} 9... fxe4 {[%clk 0:03:01.7]} 10. dxe4
{[%clk 0:03:03.2]} 10... e5 {[%clk 0:03:03.1]} 11. Be3 {[%clk 0:02:55.8]} 11...
Nd4 {[%clk 0:03:03.8]} 12. f4 {[%clk 0:02:54.5]} 12... Be6 {[%clk 0:03:01.5]}
13. b3 {[%clk 0:02:53.7]} 13... a6 {[%clk 0:03:01.1]} 14. Kh2 {[%clk 0:02:52.7]}
14... b5 {[%clk 0:02:59.5]} 15. Nd5 {[%clk 0:02:49.5]} 15... bxc4 {[%clk
0:02:56.8]} 16. bxc4 {[%clk 0:02:49.9]} 16... Rb8 {[%clk 0:02:58.2]} 17. Nec3
{[%clk 0:02:45.7]} 17... exf4 {[%clk 0:02:40.8]} 18. gxf4 {[%clk 0:02:43.5]}
18... Qh4 {[%clk 0:02:38.5]} 19. Bf2 {[%clk 0:02:41.4]} 19... Qd8 {[%clk
0:02:31]} 20. Bg3 {[%clk 0:02:33.6]} 20... g5 {[%clk 0:02:15.1]} 21. f5 {[%clk
0:02:31.6]} 21... Bxd5 {[%clk 0:02:13.8]} 22. Nxd5 {[%clk 0:02:30.2]} 22... Rb2
{[%clk 0:02:13.1]} 23. f6 {[%clk 0:02:28.4]} 23... Bxf6 {[%clk 0:02:10.7]} 24.
Qc1 {[%clk 0:02:04.6]} 24... Bg7 {[%clk 0:01:57.3]} 25. Rxf8+ {[%clk 0:02:01.1]}
25... Qxf8 {[%clk 0:01:57.6]} 26. Qxb2 {[%clk 0:01:50.7]} 26... Nf3+ {[%clk
0:01:57.6]} 27. Bxf3 {[%clk 0:01:52.2]} 27... Bxb2 {[%clk 0:01:58.9]} 28. Rf1
{[%clk 0:01:53.2]} 28... Qg7 {[%clk 0:01:55.6]} 29. Rb1 {[%clk 0:01:29.5]} 29...
Qd4 {[%clk 0:01:47]} 30. Rd1 {[%clk 0:01:19.9]} 30... Qg7 {[%clk 0:01:42.4]} 31.
Rb1 {[%clk 0:01:20.3]} 31... g4 {[%clk 0:01:27]} 32. hxg4 {[%clk 0:01:07]} 32...
Nf7 {[%clk 0:01:26.3]} 33. Ne7+ {[%clk 0:00:56.7]} 33... Kf8 {[%clk 0:01:25.8]}
34. Nf5 {[%clk 0:00:47.2]} 34... Qc3 {[%clk 0:01:25.8]} 35. Bg2 {[%clk
0:00:46.9]} 35... Qc2 {[%clk 0:01:22.9]} 36. Rf1 {[%clk 0:00:46.1]} 36... Ke8
{[%clk 0:01:10.1]} 37. Ng7+ {[%clk 0:00:45.7]} 37... Ke7 {[%clk 0:01:07.7]} 38.
Bh4+ {[%clk 0:00:44.7]} 38... Kf8 {[%clk 0:01:08.5]} 39. Nf5 {[%clk 0:00:39.4]}
39... Be5+ {[%clk 0:01:07.6]} 40. Kh1 {[%clk 0:00:40.1]} 40... Qxc4 {[%clk
0:01:06]} 41. Rf2 {[%clk 0:00:20.6]} 41... Ke8 {[%clk 0:01:02.4]} 42. g5 {[%clk
0:00:19.2]} 42... Qc1+ {[%clk 0:01:01.8]} 43. Rf1 {[%clk 0:00:19.4]} 43... Qd2
{[%clk 0:01:00.9]} 44. Rb1 {[%clk 0:00:14.6]} 44... Nxg5 {[%clk 0:00:58.7]} 45.
Rb8+ {[%clk 0:00:14.1]} 45... Kd7 {[%clk 0:00:59.1]} 46. Rb7+ {[%clk 0:00:15]}
46... Kc6 {[%clk 0:00:58.3]} 47. Rb1 {[%clk 0:00:16.9]} 47... h6 {[%clk
0:00:54.1]} 48. Ne7+ {[%clk 0:00:17.5]} 48... Kd7 {[%clk 0:00:54.4]} 49. Nd5
{[%clk 0:00:18.6]} 49... Qb2 {[%clk 0:00:51.9]} 50. Rxb2 {[%clk 0:00:18.6]}
50... Bxb2 {[%clk 0:00:49.8]} 51. Bxg5 {[%clk 0:00:18.4]} 1-0

[Event "*** Titled Tuesday 3|2 Blitz (Early)"]
[Site "Chess.com"]
[Date "2016.11.01"]
[Round "4"]
[White "NTBT_DHS"]
[Black "Blitzstream"]
[Result "0-1"]
[WhiteElo "2486"]
[BlackElo "2543"]
[TimeControl "180+2"]
[EndTime "11:50:49 PDT"]
[Termination "Blitzstream won on time"]

1. d4 {[%clk 0:03:01.9]} 1... Nf6 {[%clk 0:03:00.8]} 2. c4 {[%clk 0:03:03.1]}
2... d6 {[%clk 0:03:01.8]} 3. Nf3 {[%clk 0:03:03.3]} 3... Bg4 {[%clk 0:03:02.3]}
4. Nbd2 {[%clk 0:03:00.8]} 4... Nbd7 {[%clk 0:02:59.6]} 5. Qc2 {[%clk
0:02:59.8]} 5... e5 {[%clk 0:02:58.8]} 6. h3 {[%clk 0:02:59.9]} 6... Bh5 {[%clk
0:02:59.3]} 7. e4 {[%clk 0:02:39.3]} 7... Be7 {[%clk 0:02:32.3]} 8. d5 {[%clk
0:02:36.2]} 8... a5 {[%clk 0:02:30.8]} 9. b3 {[%clk 0:02:15.1]} 9... Nc5 {[%clk
0:02:31.5]} 10. Be2 {[%clk 0:02:12.2]} 10... Bg6 {[%clk 0:02:25.1]} 11. Bd3
{[%clk 0:02:11.9]} 11... Nh5 {[%clk 0:02:25.9]} 12. g3 {[%clk 0:02:04.8]} 12...
O-O {[%clk 0:02:25.7]} 13. Ba3 {[%clk 0:02:04]} 13... Nxd3+ {[%clk 0:02:25.7]}
14. Qxd3 {[%clk 0:02:04.2]} 14... f5 {[%clk 0:02:27.3]} 15. O-O-O {[%clk
0:01:38]} 15... Qd7 {[%clk 0:02:20.6]} 16. Rde1 {[%clk 0:01:31.4]} 16... Kh8
{[%clk 0:02:15]} 17. Rhg1 {[%clk 0:01:24.1]} 17... fxe4 {[%clk 0:02:11.9]} 18.
Nxe4 {[%clk 0:01:24.5]} 18... Qf5 {[%clk 0:01:10.2]} 19. Re3 {[%clk 0:01:00.1]}
19... Nf6 {[%clk 0:00:59.6]} 20. Nh4 {[%clk 0:00:53.2]} 20... Qh5 {[%clk
0:00:39.8]} 21. Nxg6+ {[%clk 0:00:42.5]} 21... Qxg6 {[%clk 0:00:40.6]} 22. Nxf6
{[%clk 0:00:31.3]} 22... Rxf6 {[%clk 0:00:42.5]} 23. Qxg6 {[%clk 0:00:30.3]}
23... hxg6 {[%clk 0:00:44.4]} 24. Rg2 {[%clk 0:00:28.1]} 24... Raf8 {[%clk
0:00:44.9]} 25. Re2 {[%clk 0:00:29.6]} 25... Rf3 {[%clk 0:00:46.1]} 26. Kc2
{[%clk 0:00:29.7]} 26... a4 {[%clk 0:00:46.1]} 27. Bc1 {[%clk 0:00:29.1]} 27...
Kh7 {[%clk 0:00:39]} 28. b4 {[%clk 0:00:28.6]} 28... g5 {[%clk 0:00:36.9]} 29.
Be3 {[%clk 0:00:29.1]} 29... Kg6 {[%clk 0:00:36.9]} 30. b5 {[%clk 0:00:29.1]}
30... Rh8 {[%clk 0:00:30.5]} 31. h4 {[%clk 0:00:29.5]} 31... Kf5 {[%clk
0:00:28.2]} 32. g4+ {[%clk 0:00:28.6]} 32... Kg6 {[%clk 0:00:25.7]} 33. h5+
{[%clk 0:00:30]} 33... Kf7 {[%clk 0:00:27.1]} 34. Kd3 {[%clk 0:00:23.5]} 34...
g6 {[%clk 0:00:27.2]} 35. Ke4 {[%clk 0:00:23.4]} 35... Rh3 {[%clk 0:00:27.1]}
36. hxg6+ {[%clk 0:00:22.5]} 36... Kxg6 {[%clk 0:00:29]} 37. Kd3 {[%clk
0:00:18.8]} 37... b6 {[%clk 0:00:25.5]} 38. Kc3 {[%clk 0:00:20]} 38... Rh1
{[%clk 0:00:22.4]} 39. Kb4 {[%clk 0:00:20.1]} 39... Rb1+ {[%clk 0:00:23.4]} 40.
Ka3 {[%clk 0:00:20.8]} 40... Bf6 {[%clk 0:00:19.4]} 41. Rb2 {[%clk 0:00:14.8]}
41... Rd1 {[%clk 0:00:20.2]} 42. Kxa4 {[%clk 0:00:14.5]} 42... e4 {[%clk
0:00:21.7]} 43. Rb3 {[%clk 0:00:11.3]} 43... Ra8+ {[%clk 0:00:21.4]} 44. Kb4
{[%clk 0:00:12.7]} 44... Rxa2 {[%clk 0:00:20.4]} 45. Rh2 {[%clk 0:00:13.6]}
45... Rda1 {[%clk 0:00:21.1]} 0-1